[Event "Early-Titled-Tuesday-Blitz-May-14-2024"]
[Site "Chess.com"]
[Date "2024.05.14"]
[Round "10"]
[White "lilleper1"]
[Black "Zurability"]
[Result "1-0"]
[WhiteElo "2933"]
[BlackElo "2833"]
[TimeControl "180+1"]
[EndTime "9:56:08 PDT"]
[Termination "lilleper1 won by resignation"]

1. e4 {[%clk 0:03:00.9]} 1... c5 {[%clk 0:02:59.9]} 2. Nf3 {[%clk 0:03:01.2]}
2... d6 {[%clk 0:03:00.5]} 3. h3 {[%clk 0:02:59.6]} 3... Nf6 {[%clk 0:03:00.4]}
4. Nc3 {[%clk 0:02:58.9]} 4... Nc6 {[%clk 0:03:00.3]} 5. d4 {[%clk 0:02:58.9]}
5... cxd4 {[%clk 0:03:00.4]} 6. Nxd4 {[%clk 0:02:59.8]} 6... g6 {[%clk
0:02:59.5]} 7. Be3 {[%clk 0:02:59.2]} 7... Bg7 {[%clk 0:02:59.7]} 8. Qd2 {[%clk
0:02:59.7]} 8... Bd7 {[%clk 0:02:50.3]} 9. O-O-O {[%clk 0:02:59.5]} 9... Rc8
{[%clk 0:02:50.9]} 10. Kb1 {[%clk 0:02:57.7]} 10... Qc7 {[%clk 0:02:26.3]} 11.
g4 {[%clk 0:02:55.2]} 11... Nxd4 {[%clk 0:02:04.9]} 12. Qxd4 {[%clk 0:02:34.9]}
12... O-O {[%clk 0:01:57.1]} 13. Qd3 {[%clk 0:02:32.5]} 13... b5 {[%clk
0:01:53]} 14. g5 {[%clk 0:02:30.3]} 14... Nh5 {[%clk 0:01:40.2]} 15. Nd5 {[%clk
0:02:30.4]} 15... Qd8 {[%clk 0:01:41.1]} 16. Be2 {[%clk 0:02:29.7]} 16... e6
{[%clk 0:01:35.6]} 17. Bxh5 {[%clk 0:02:14.2]} 17... exd5 {[%clk 0:01:35]} 18.
Bg4 {[%clk 0:02:09.6]} 18... dxe4 {[%clk 0:01:27.3]} 19. Qxd6 {[%clk 0:02:06.9]}
19... Bxg4 {[%clk 0:01:16.8]} 20. hxg4 {[%clk 0:02:07.8]} 20... Qc7 {[%clk
0:00:45.2]} 21. c3 {[%clk 0:02:01.2]} 21... Qc4 {[%clk 0:00:40.3]} 22. Qh2
{[%clk 0:01:56.8]} 22... h5 {[%clk 0:00:18]} 23. gxh6 {[%clk 0:01:48.5]} 23...
Bf6 {[%clk 0:00:18]} 24. Bd4 {[%clk 0:01:42.3]} 24... Bxd4 {[%clk 0:00:13.2]}
25. Rxd4 {[%clk 0:01:42.3]} 25... Qe6 {[%clk 0:00:12.9]} 26. Rd6 {[%clk
0:01:30]} 26... Qxg4 {[%clk 0:00:11.3]} 27. Qe5 {[%clk 0:01:26]} 27... f6 {[%clk
0:00:06.4]} 28. Rxf6 {[%clk 0:01:24]} 28... Rxf6 {[%clk 0:00:04.9]} 29. Qxf6
{[%clk 0:01:23.2]} 29... Rc7 {[%clk 0:00:05.2]} 30. Qd8+ {[%clk 0:01:21.4]} 1-0

[Event "Early-Titled-Tuesday-Blitz-May-14-2024"]
[Site "Chess.com"]
[Date "2024.05.14"]
[Round "10"]
[White "Renatoforf"]
[Black "NiranjanNavalgund"]
[Result "1-0"]
[WhiteElo "1979"]
[BlackElo "2412"]
[TimeControl "180+1"]
[EndTime "9:56:10 PDT"]
[Termination "Renatoforf won by resignation"]

1. e4 {[%clk 0:03:00.9]} 1... d6 {[%clk 0:02:59.9]} 2. d4 {[%clk 0:02:59.9]}
2... g6 {[%clk 0:02:59.6]} 3. Nc3 {[%clk 0:02:59.1]} 3... Bg7 {[%clk 0:03:00.5]}
4. Bg5 {[%clk 0:02:57]} 4... c6 {[%clk 0:03:01.4]} 5. Qd2 {[%clk 0:02:55.7]}
5... Qa5 {[%clk 0:03:02.3]} 6. Nge2 {[%clk 0:02:49.5]} 6... b5 {[%clk
0:03:02.4]} 7. a3 {[%clk 0:02:40.2]} 7... b4 {[%clk 0:03:02.3]} 8. Na2 {[%clk
0:02:38.8]} 8... c5 {[%clk 0:02:56.2]} 9. axb4 {[%clk 0:02:35.8]} 9... cxb4
{[%clk 0:02:47.3]} 10. Be3 {[%clk 0:02:28.8]} 10... Nc6 {[%clk 0:02:44.4]} 11.
f3 {[%clk 0:02:25.4]} 11... b3 {[%clk 0:02:44.7]} 12. Qxa5 {[%clk 0:02:22.9]}
12... Nxa5 {[%clk 0:02:44.4]} 13. Nb4 {[%clk 0:02:21.7]} 13... Nc4 {[%clk
0:02:43.8]} 14. Bc1 {[%clk 0:02:16.5]} 14... bxc2 {[%clk 0:02:43.9]} 15. Nc3
{[%clk 0:02:12.5]} 15... Nb6 {[%clk 0:02:43.5]} 16. Nbd5 {[%clk 0:02:08.9]}
16... Nxd5 {[%clk 0:02:42]} 17. Nxd5 {[%clk 0:02:07.8]} 17... Kd8 {[%clk
0:02:42.3]} 18. Bd2 {[%clk 0:02:03]} 18... Bxd4 {[%clk 0:02:41.5]} 19. Ba5+
{[%clk 0:02:01.1]} 19... Kd7 {[%clk 0:02:30.2]} 20. Bb5+ {[%clk 0:01:58.6]}
20... Ke6 {[%clk 0:02:26.6]} 21. Nc7+ {[%clk 0:01:57.7]} 21... Kf6 {[%clk
0:02:26.9]} 22. Nxa8 {[%clk 0:01:56.7]} 22... Bxb2 {[%clk 0:02:27.5]} 23. Kd2
{[%clk 0:01:54.6]} 23... Bxa1 {[%clk 0:02:24.1]} 24. Rxa1 {[%clk 0:01:52.9]}
24... Bb7 {[%clk 0:02:25]} 25. Nc7 {[%clk 0:01:49.6]} 25... Nh6 {[%clk
0:02:24.5]} 26. Bc3+ {[%clk 0:01:46.5]} 26... e5 {[%clk 0:02:24]} 27. Nd5+
{[%clk 0:01:43.9]} 27... Bxd5 {[%clk 0:02:23.5]} 28. exd5 {[%clk 0:01:43]} 28...
Rc8 {[%clk 0:02:22]} 29. Bc6 {[%clk 0:01:42.1]} 29... Nf5 {[%clk 0:02:21.4]} 30.
Rxa7 {[%clk 0:01:36]} 30... Ne3 {[%clk 0:02:19.7]} 31. Bb2 {[%clk 0:01:33.9]}
31... c1=Q+ {[%clk 0:02:16.3]} 32. Bxc1 {[%clk 0:01:32.5]} 32... Nc4+ {[%clk
0:02:14.9]} 33. Ke2 {[%clk 0:01:29.6]} 33... Nb6 {[%clk 0:02:14.2]} 34. Ba3
{[%clk 0:01:24.5]} 34... Nc4 {[%clk 0:02:13.9]} 35. Bb4 {[%clk 0:01:20.4]} 35...
Rb8 {[%clk 0:02:12.9]} 36. Rb7 {[%clk 0:01:19.5]} 36... Ra8 {[%clk 0:02:11.4]}
37. Rxf7+ {[%clk 0:01:18.4]} 37... Kxf7 {[%clk 0:02:11]} 38. Bxa8 {[%clk
0:01:18.2]} 38... Ke7 {[%clk 0:02:11.4]} 39. Bc6 {[%clk 0:01:17.1]} 39... Nb6
{[%clk 0:02:07.2]} 40. Kd3 {[%clk 0:01:14.7]} 40... Nc8 {[%clk 0:02:07.4]} 41.
Ke4 {[%clk 0:01:12]} 41... Nb6 {[%clk 0:02:07.2]} 42. f4 {[%clk 0:01:10.9]}
42... exf4 {[%clk 0:02:06.9]} 43. Kxf4 {[%clk 0:01:10.3]} 43... Nc4 {[%clk
0:02:07.8]} 44. Kg5 {[%clk 0:01:09.3]} 44... Ne5 {[%clk 0:02:08.1]} 45. Kh6
{[%clk 0:01:07.9]} 45... Nd3 {[%clk 0:02:07.6]} 46. Ba3 {[%clk 0:01:06.9]} 46...
Nf4 {[%clk 0:02:07.6]} 47. g3 {[%clk 0:01:06.1]} 47... Ne2 {[%clk 0:02:02.1]}
48. Kxh7 {[%clk 0:01:05.4]} 48... Kf6 {[%clk 0:02:02]} 49. Bxd6 {[%clk
0:01:02.9]} 49... Nd4 {[%clk 0:02:02.6]} 50. Bf4 {[%clk 0:01:01.6]} 50... Nf3
{[%clk 0:02:02.8]} 51. d6 {[%clk 0:01:00.7]} 51... Ke6 {[%clk 0:02:03.3]} 52. d7
{[%clk 0:00:59.8]} 52... Ke7 {[%clk 0:02:03.5]} 53. Bc7 {[%clk 0:00:58.9]} 53...
Ng5+ {[%clk 0:02:02.7]} 54. Kxg6 {[%clk 0:00:57.7]} 54... Ne6 {[%clk 0:02:03.6]}
55. d8=Q+ {[%clk 0:00:55.7]} 55... Nxd8 {[%clk 0:02:02.9]} 56. Bxd8+ {[%clk
0:00:56]} 56... Kf8 {[%clk 0:02:03.5]} 57. Bf6 {[%clk 0:00:52.5]} 57... Kg8
{[%clk 0:02:04.4]} 58. Bd5+ {[%clk 0:00:51.6]} 58... Kf8 {[%clk 0:02:04.8]} 59.
h3 {[%clk 0:00:48.3]} 59... Ke8 {[%clk 0:02:05.2]} 60. h4 {[%clk 0:00:48.8]}
60... Kf8 {[%clk 0:02:05.7]} 61. h5 {[%clk 0:00:49.2]} 61... Ke8 {[%clk
0:02:06.3]} 62. h6 {[%clk 0:00:49.7]} 62... Kd7 {[%clk 0:02:07]} 63. h7 {[%clk
0:00:49.4]} 63... Kd6 {[%clk 0:02:07.9]} 64. h8=Q {[%clk 0:00:49]} 64... Kc5
{[%clk 0:02:08.2]} 65. Qc8+ {[%clk 0:00:47.8]} 65... Kb4 {[%clk 0:02:08.7]} 66.
Qc4+ {[%clk 0:00:46.6]} 1-0

[Event "Early-Titled-Tuesday-Blitz-May-14-2024"]
[Site "Chess.com"]
[Date "2024.05.14"]
[Round "10"]
[White "agvega14"]
[Black "LileKoridze"]
[Result "1-0"]
[WhiteElo "2179"]
[BlackElo "2397"]
[TimeControl "180+1"]
[EndTime "9:56:11 PDT"]
[Termination "agvega14 won by resignation"]

1. e4 {[%clk 0:03:00.9]} 1... c5 {[%clk 0:02:59.9]} 2. Nf3 {[%clk 0:03:00.5]}
2... d6 {[%clk 0:03:00]} 3. c3 {[%clk 0:03:00.3]} 3... Nf6 {[%clk 0:02:59.8]} 4.
Be2 {[%clk 0:03:00.3]} 4... g6 {[%clk 0:02:59.7]} 5. O-O {[%clk 0:03:00.2]} 5...
Bh6 {[%clk 0:02:59.7]} 6. h3 {[%clk 0:02:58.7]} 6... O-O {[%clk 0:02:58.7]} 7.
d3 {[%clk 0:02:57.9]} 7... Bxc1 {[%clk 0:02:57.3]} 8. Qxc1 {[%clk 0:02:58.8]}
8... Nc6 {[%clk 0:02:57.5]} 9. Na3 {[%clk 0:02:51.1]} 9... a6 {[%clk 0:02:56.7]}
10. Qh6 {[%clk 0:02:49.2]} 10... Ne5 {[%clk 0:02:46.2]} 11. Ng5 {[%clk
0:02:44.5]} 11... Re8 {[%clk 0:02:41.5]} 12. f4 {[%clk 0:02:40.3]} 12... Ned7
{[%clk 0:02:41.8]} 13. Nc4 {[%clk 0:02:29.4]} 13... Nf8 {[%clk 0:02:39.3]} 14.
e5 {[%clk 0:02:23.1]} 14... Nd5 {[%clk 0:02:30.3]} 15. Bg4 {[%clk 0:01:54.1]}
15... Bxg4 {[%clk 0:02:18.5]} 16. hxg4 {[%clk 0:01:53.7]} 16... f6 {[%clk
0:02:19]} 17. Nxh7 {[%clk 0:01:44.7]} 17... Nxh7 {[%clk 0:02:16.2]} 18. Qxg6+
{[%clk 0:01:44.5]} 18... Kh8 {[%clk 0:02:16.7]} 19. e6 {[%clk 0:01:29.1]} 19...
Rg8 {[%clk 0:02:15.5]} 20. Qe4 {[%clk 0:01:23.4]} 20... Rxg4 {[%clk 0:02:13.1]}
21. Qxd5 {[%clk 0:01:20.8]} 21... Qg8 {[%clk 0:02:12.7]} 22. Ne3 {[%clk
0:01:20.2]} 22... Rg3 {[%clk 0:02:12.3]} 23. Rf3 {[%clk 0:01:19.2]} 23... Rb8
{[%clk 0:02:07.5]} 24. Raf1 {[%clk 0:01:15.4]} 24... Rg6 {[%clk 0:01:52.2]} 25.
Rh3 {[%clk 0:01:11.4]} 25... b5 {[%clk 0:01:49.6]} 26. Nf5 {[%clk 0:01:08.1]}
26... Qf8 {[%clk 0:01:46.7]} 27. Rff3 {[%clk 0:00:59.1]} 27... Kg8 {[%clk
0:01:45.8]} 28. Rfg3 {[%clk 0:00:58.6]} 28... Rxg3 {[%clk 0:01:45.7]} 29. Rxg3+
{[%clk 0:00:55.7]} 29... Kh8 {[%clk 0:01:46.2]} 30. Rg7 {[%clk 0:00:50.5]} 30...
Qxg7 {[%clk 0:01:46.2]} 31. Nxg7 {[%clk 0:00:50.2]} 31... Kxg7 {[%clk
0:01:47.1]} 32. Qh5 {[%clk 0:00:46.3]} 32... Rf8 {[%clk 0:01:43.3]} 33. Qg4+
{[%clk 0:00:44.6]} 33... Kh8 {[%clk 0:01:43]} 34. Qf5 {[%clk 0:00:40.8]} 34...
Rc8 {[%clk 0:01:42.2]} 35. Qd5 {[%clk 0:00:37]} 35... Rc7 {[%clk 0:01:42.2]} 36.
Qa8+ {[%clk 0:00:36.5]} 36... Kg7 {[%clk 0:01:42.2]} 37. Qxa6 {[%clk 0:00:36.3]}
37... Nf8 {[%clk 0:01:42.7]} 38. f5 {[%clk 0:00:35.8]} 38... b4 {[%clk
0:01:42.2]} 39. Qb6 {[%clk 0:00:34.1]} 39... Rc8 {[%clk 0:01:41.9]} 40. cxb4
{[%clk 0:00:31.9]} 40... cxb4 {[%clk 0:01:42]} 41. Qxb4 {[%clk 0:00:31.2]} 41...
Rc1+ {[%clk 0:01:42.1]} 42. Kh2 {[%clk 0:00:30.7]} 42... Nh7 {[%clk 0:01:42]}
43. Qb7 {[%clk 0:00:28.8]} 43... Ng5 {[%clk 0:01:41.6]} 44. Qxe7+ {[%clk
0:00:28.2]} 44... Kh6 {[%clk 0:01:41.9]} 45. Qxf6+ {[%clk 0:00:27.9]} 45... Kh5
{[%clk 0:01:42.4]} 46. e7 {[%clk 0:00:25.6]} 46... Re1 {[%clk 0:01:42.1]} 47.
e8=Q+ {[%clk 0:00:23.5]} 47... Rxe8 {[%clk 0:01:41.3]} 48. Qg6+ {[%clk
0:00:23.7]} 1-0

[Event "Early-Titled-Tuesday-Blitz-May-14-2024"]
[Site "Chess.com"]
[Date "2024.05.14"]
[Round "10"]
[White "francyIM"]
[Black "Pomegranate988"]
[Result "1-0"]
[WhiteElo "2860"]
[BlackElo "2647"]
[TimeControl "180+1"]
[EndTime "9:56:15 PDT"]
[Termination "francyIM won by checkmate"]

1. e4 {[%clk 0:03:00.9]} 1... c6 {[%clk 0:02:58.9]} 2. d4 {[%clk 0:02:53.6]}
2... d5 {[%clk 0:02:59.3]} 3. exd5 {[%clk 0:02:51.3]} 3... cxd5 {[%clk
0:03:00.2]} 4. Bd3 {[%clk 0:02:51.3]} 4... Nf6 {[%clk 0:02:58.1]} 5. c3 {[%clk
0:02:50.8]} 5... Bg4 {[%clk 0:02:52.3]} 6. Qb3 {[%clk 0:02:50.8]} 6... Qc7
{[%clk 0:02:50.6]} 7. Ne2 {[%clk 0:02:49.2]} 7... Bxe2 {[%clk 0:02:39]} 8. Bxe2
{[%clk 0:02:49]} 8... Nc6 {[%clk 0:02:39.4]} 9. O-O {[%clk 0:02:48.4]} 9... e6
{[%clk 0:02:36.3]} 10. Nd2 {[%clk 0:02:47.7]} 10... Bd6 {[%clk 0:02:35.9]} 11.
Nf3 {[%clk 0:02:45.7]} 11... O-O {[%clk 0:02:33.9]} 12. Bd3 {[%clk 0:02:44.5]}
12... Ne4 {[%clk 0:02:31.8]} 13. h3 {[%clk 0:02:41.2]} 13... f5 {[%clk
0:02:26.1]} 14. Qd1 {[%clk 0:02:37.2]} 14... h6 {[%clk 0:02:21.6]} 15. a3 {[%clk
0:02:35.5]} 15... Na5 {[%clk 0:02:06.5]} 16. Re1 {[%clk 0:02:29.7]} 16... a6
{[%clk 0:02:05.6]} 17. Ne5 {[%clk 0:02:29.3]} 17... Bxe5 {[%clk 0:02:02.5]} 18.
dxe5 {[%clk 0:02:30.2]} 18... Rfd8 {[%clk 0:01:53.9]} 19. Bc2 {[%clk 0:02:26.4]}
19... Nc4 {[%clk 0:01:45.1]} 20. f3 {[%clk 0:02:24.4]} 20... Qc5+ {[%clk
0:01:35.7]} 21. Qd4 {[%clk 0:02:21.2]} 21... Qxd4+ {[%clk 0:01:33.9]} 22. cxd4
{[%clk 0:02:22.1]} 22... Ng3 {[%clk 0:01:25.5]} 23. Kf2 {[%clk 0:02:19.1]} 23...
f4 {[%clk 0:01:13.3]} 24. Bxf4 {[%clk 0:02:18.1]} 24... Nh5 {[%clk 0:01:12.7]}
25. Bc1 {[%clk 0:02:16.3]} 25... g5 {[%clk 0:01:12.1]} 26. h4 {[%clk 0:02:14.7]}
26... gxh4 {[%clk 0:01:11]} 27. Rh1 {[%clk 0:02:12]} 27... Rac8 {[%clk
0:01:03.8]} 28. Bg6 {[%clk 0:02:10.7]} 28... Ng3 {[%clk 0:00:52.8]} 29. Rxh4
{[%clk 0:02:08]} 29... Nf5 {[%clk 0:00:48.1]} 30. Rg4 {[%clk 0:02:02.3]} 30...
Kh8 {[%clk 0:00:40.9]} 31. Bxf5 {[%clk 0:01:55.8]} 31... exf5 {[%clk 0:00:41.8]}
32. Rg6 {[%clk 0:01:54.8]} 32... Na5 {[%clk 0:00:36.5]} 33. Bxh6 {[%clk
0:01:50.5]} 33... Kh7 {[%clk 0:00:33.2]} 34. Rg3 {[%clk 0:01:46.8]} 34... Rc2+
{[%clk 0:00:31.7]} 35. Ke3 {[%clk 0:01:41.3]} 35... f4+ {[%clk 0:00:15.3]} 36.
Bxf4 {[%clk 0:01:38.5]} 36... Nc4+ {[%clk 0:00:10.5]} 37. Kd3 {[%clk 0:01:38.9]}
37... Rxb2 {[%clk 0:00:08.2]} 38. Rh1# {[%clk 0:01:38.6]} 1-0

[Event "Early-Titled-Tuesday-Blitz-May-14-2024"]
[Site "Chess.com"]
[Date "2024.05.14"]
[Round "10"]
[White "CristianS27"]
[Black "jasrom"]
[Result "0-1"]
[WhiteElo "2529"]
[BlackElo "2394"]
[TimeControl "180+1"]
[EndTime "9:56:20 PDT"]
[Termination "jasrom won by resignation"]

1. e4 {[%clk 0:02:55.8]} 1... e6 {[%clk 0:02:59.3]} 2. d4 {[%clk 0:02:55.4]}
2... d5 {[%clk 0:02:59.5]} 3. Nd2 {[%clk 0:02:56]} 3... Be7 {[%clk 0:02:58.9]}
4. Bd3 {[%clk 0:02:55.3]} 4... c5 {[%clk 0:02:56.9]} 5. dxc5 {[%clk 0:02:53.3]}
5... Nf6 {[%clk 0:02:50.3]} 6. Qe2 {[%clk 0:02:52.1]} 6... a5 {[%clk 0:02:48.8]}
7. Ngf3 {[%clk 0:02:47]} 7... O-O {[%clk 0:02:48]} 8. O-O {[%clk 0:02:46.7]}
8... Na6 {[%clk 0:02:48.2]} 9. exd5 {[%clk 0:02:45.2]} 9... exd5 {[%clk
0:02:43.2]} 10. Nb3 {[%clk 0:02:35.4]} 10... a4 {[%clk 0:02:42.3]} 11. Nbd4
{[%clk 0:02:35.5]} 11... Nxc5 {[%clk 0:02:42.4]} 12. Bg5 {[%clk 0:02:35]} 12...
Re8 {[%clk 0:02:35.3]} 13. h3 {[%clk 0:02:30.5]} 13... Nce4 {[%clk 0:02:30.6]}
14. Bh4 {[%clk 0:02:24.3]} 14... h6 {[%clk 0:02:23.2]} 15. a3 {[%clk 0:01:51.2]}
15... Bd6 {[%clk 0:02:03.2]} 16. Qd1 {[%clk 0:01:43.6]} 16... g5 {[%clk
0:01:56]} 17. Bg3 {[%clk 0:01:41.2]} 17... Bxg3 {[%clk 0:01:40.4]} 18. fxg3
{[%clk 0:01:42.1]} 18... Nxg3 {[%clk 0:01:40.9]} 19. Re1 {[%clk 0:01:33.5]}
19... Nge4 {[%clk 0:01:40.8]} 20. c3 {[%clk 0:01:32.8]} 20... Qd6 {[%clk
0:01:37.6]} 21. Qc2 {[%clk 0:01:26.9]} 21... Qg3 {[%clk 0:01:32.7]} 22. Rad1
{[%clk 0:01:26]} 22... Bxh3 {[%clk 0:01:31]} 23. Bf1 {[%clk 0:01:12.4]} 23...
Bd7 {[%clk 0:00:57]} 24. Nh2 {[%clk 0:01:00.5]} 24... Nh5 {[%clk 0:00:46.2]} 25.
Qe2 {[%clk 0:00:33.2]} 25... Nf4 {[%clk 0:00:45.3]} 26. Qf3 {[%clk 0:00:33.5]}
26... Nh3+ {[%clk 0:00:44.7]} 27. Kh1 {[%clk 0:00:33.1]} 27... Nef2+ {[%clk
0:00:44.3]} 0-1

[Event "Early-Titled-Tuesday-Blitz-May-14-2024"]
[Site "Chess.com"]
[Date "2024.05.14"]
[Round "10"]
[White "ernestina08chess"]
[Black "Aleksandar-Topalov"]
[Result "0-1"]
[WhiteElo "2318"]
[BlackElo "2466"]
[TimeControl "180+1"]
[EndTime "9:56:20 PDT"]
[Termination "Aleksandar-Topalov won by resignation"]

1. e4 {[%clk 0:02:58.1]} 1... e6 {[%clk 0:02:59.7]} 2. d4 {[%clk 0:02:58]} 2...
d5 {[%clk 0:02:59]} 3. e5 {[%clk 0:02:58.7]} 3... Ne7 {[%clk 0:02:58.3]} 4. Bd3
{[%clk 0:02:58.1]} 4... Qd7 {[%clk 0:02:58.3]} 5. c3 {[%clk 0:02:57.8]} 5... b6
{[%clk 0:02:58.5]} 6. Nf3 {[%clk 0:02:58.3]} 6... Ba6 {[%clk 0:02:58.4]} 7. O-O
{[%clk 0:02:59]} 7... Bxd3 {[%clk 0:02:57.3]} 8. Qxd3 {[%clk 0:02:59.9]} 8... c5
{[%clk 0:02:57.4]} 9. Bg5 {[%clk 0:02:59.2]} 9... Nbc6 {[%clk 0:02:57]} 10. Nbd2
{[%clk 0:02:58.2]} 10... h6 {[%clk 0:02:57.4]} 11. Bh4 {[%clk 0:02:55.5]} 11...
Nf5 {[%clk 0:02:57.4]} 12. Bg3 {[%clk 0:02:51.7]} 12... Be7 {[%clk 0:02:56.9]}
13. a3 {[%clk 0:02:41.1]} 13... a5 {[%clk 0:02:53.9]} 14. a4 {[%clk 0:02:36.9]}
14... O-O {[%clk 0:02:52.2]} 15. Nb1 {[%clk 0:02:26.2]} 15... Rfc8 {[%clk
0:02:48.4]} 16. Na3 {[%clk 0:02:22.4]} 16... cxd4 {[%clk 0:02:47.5]} 17. cxd4
{[%clk 0:02:21.3]} 17... Nb4 {[%clk 0:02:45.8]} 18. Qd2 {[%clk 0:02:18.3]} 18...
Qxa4 {[%clk 0:02:41.4]} 19. Nc4 {[%clk 0:02:09.8]} 19... Qb5 {[%clk 0:02:40.9]}
20. Nd6 {[%clk 0:02:07.5]} 20... Bxd6 {[%clk 0:02:33.7]} 21. exd6 {[%clk
0:02:08.4]} 21... Rc6 {[%clk 0:02:32.6]} 22. d7 {[%clk 0:02:06.4]} 22... Rc2
{[%clk 0:02:27.3]} 23. Qf4 {[%clk 0:01:48.4]} 23... Qxd7 {[%clk 0:02:23.7]} 24.
Ne5 {[%clk 0:01:46.4]} 24... Qe8 {[%clk 0:02:23.3]} 25. f3 {[%clk 0:01:23.4]}
25... Rac8 {[%clk 0:02:12]} 26. Be1 {[%clk 0:01:19.5]} 26... Rxb2 {[%clk
0:02:10.7]} 27. g4 {[%clk 0:01:13.9]} 27... Nd6 {[%clk 0:02:10]} 28. Bxb4 {[%clk
0:01:06.9]} 28... Rxb4 {[%clk 0:02:07.3]} 29. Ra2 {[%clk 0:01:03.1]} 29... Nb5
{[%clk 0:02:02.3]} 30. Rd2 {[%clk 0:00:54.4]} 30... f6 {[%clk 0:01:58.4]} 31.
Nd3 {[%clk 0:00:47.2]} 31... Rxd4 {[%clk 0:01:58.1]} 32. Qe3 {[%clk 0:00:47.9]}
32... e5 {[%clk 0:01:56.3]} 33. Rb1 {[%clk 0:00:36.7]} 33... Rc3 {[%clk
0:01:47.2]} 34. Qe2 {[%clk 0:00:30.9]} 34... Nd6 {[%clk 0:01:37.7]} 35. Ne1
{[%clk 0:00:18.9]} 35... Rxd2 {[%clk 0:01:32.3]} 36. Qxd2 {[%clk 0:00:19.8]}
36... Qc6 {[%clk 0:01:32.2]} 37. Rxb6 {[%clk 0:00:17]} 37... Qxb6+ {[%clk
0:01:31.5]} 0-1

[Event "Early-Titled-Tuesday-Blitz-May-14-2024"]
[Site "Chess.com"]
[Date "2024.05.14"]
[Round "10"]
[White "Korchmar_Vasiliy"]
[Black "Viktoker"]
[Result "1-0"]
[WhiteElo "2688"]
[BlackElo "2376"]
[TimeControl "180+1"]
[EndTime "9:56:24 PDT"]
[Termination "Korchmar_Vasiliy won by checkmate"]

1. d4 {[%clk 0:03:00.9]} 1... f5 {[%clk 0:02:59.1]} 2. e4 {[%clk 0:03:00]} 2...
fxe4 {[%clk 0:02:58]} 3. f3 {[%clk 0:03:00.5]} 3... d5 {[%clk 0:02:55.1]} 4.
fxe4 {[%clk 0:02:59.8]} 4... dxe4 {[%clk 0:02:56]} 5. Nc3 {[%clk 0:02:56.7]}
5... Nf6 {[%clk 0:02:56.3]} 6. Bg5 {[%clk 0:02:57.3]} 6... Be6 {[%clk
0:02:56.6]} 7. Nge2 {[%clk 0:02:37.5]} 7... Bd5 {[%clk 0:02:53.9]} 8. Nf4 {[%clk
0:02:34.7]} 8... e6 {[%clk 0:02:53]} 9. Bxf6 {[%clk 0:02:27.6]} 9... Qxf6 {[%clk
0:02:32.7]} 10. Ncxd5 {[%clk 0:02:27.4]} 10... exd5 {[%clk 0:02:32.1]} 11. Nxd5
{[%clk 0:02:28]} 11... Qd6 {[%clk 0:02:00]} 12. Bc4 {[%clk 0:02:28.2]} 12... Nc6
{[%clk 0:01:47.2]} 13. Qg4 {[%clk 0:02:27]} 13... Ne7 {[%clk 0:00:52.1]} 14. Ne3
{[%clk 0:01:59.1]} 14... Qxd4 {[%clk 0:00:41.1]} 15. Ke2 {[%clk 0:01:54.5]}
15... h5 {[%clk 0:00:18.6]} 16. Qe6 {[%clk 0:01:52.9]} 16... Qf6 {[%clk
0:00:14.7]} 17. Qh3 {[%clk 0:01:35.8]} 17... g6 {[%clk 0:00:12.7]} 18. Rhf1
{[%clk 0:01:35.5]} 18... Nf5 {[%clk 0:00:12.9]} 19. Nxf5 {[%clk 0:01:31.2]}
19... gxf5 {[%clk 0:00:13.3]} 20. Rxf5 {[%clk 0:01:32.1]} 20... Qd4 {[%clk
0:00:12.9]} 21. Rxf8+ {[%clk 0:01:25.6]} 21... Kxf8 {[%clk 0:00:04.4]} 22. Rf1+
{[%clk 0:01:23.8]} 22... Kg7 {[%clk 0:00:03.6]} 23. Qg3+ {[%clk 0:01:23.9]}
23... Kh6 {[%clk 0:00:03.2]} 24. Qf4+ {[%clk 0:01:20]} 24... Kh7 {[%clk
0:00:03.7]} 25. Qf7+ {[%clk 0:01:14.2]} 25... Kh6 {[%clk 0:00:04]} 26. Rf6+
{[%clk 0:01:12.7]} 26... Kg5 {[%clk 0:00:01.3]} 27. Qg6+ {[%clk 0:01:08.5]}
27... Kh4 {[%clk 0:00:01.7]} 28. Qg3# {[%clk 0:01:07.7]} 1-0

[Event "Early-Titled-Tuesday-Blitz-May-14-2024"]
[Site "Chess.com"]
[Date "2024.05.14"]
[Round "10"]
[White "Witik"]
[Black "Niilo1"]
[Result "1-0"]
[WhiteElo "2769"]
[BlackElo "2364"]
[TimeControl "180+1"]
[EndTime "9:56:30 PDT"]
[Termination "Witik won on time"]

1. d4 {[%clk 0:02:59.8]} 1... Nf6 {[%clk 0:02:26.2]} 2. Nf3 {[%clk 0:02:59.4]}
2... d5 {[%clk 0:02:26.1]} 3. Bf4 {[%clk 0:02:59.4]} 3... c5 {[%clk 0:02:24.5]}
4. e3 {[%clk 0:02:59.6]} 4... Nc6 {[%clk 0:02:24.9]} 5. Nbd2 {[%clk 0:02:59.7]}
5... e6 {[%clk 0:02:24]} 6. c3 {[%clk 0:02:55.4]} 6... Nh5 {[%clk 0:02:23.4]} 7.
Bg5 {[%clk 0:02:51.6]} 7... f6 {[%clk 0:02:24]} 8. Bh4 {[%clk 0:02:50.8]} 8...
g6 {[%clk 0:02:24.6]} 9. g4 {[%clk 0:02:47.9]} 9... Ng7 {[%clk 0:02:24]} 10. Bd3
{[%clk 0:02:27.6]} 10... cxd4 {[%clk 0:02:22.5]} 11. cxd4 {[%clk 0:02:23.7]}
11... Be7 {[%clk 0:02:22.5]} 12. Rg1 {[%clk 0:02:13.5]} 12... Bd7 {[%clk
0:02:16.1]} 13. a3 {[%clk 0:02:09.4]} 13... g5 {[%clk 0:01:54.1]} 14. Bg3 {[%clk
0:02:09.2]} 14... Qb6 {[%clk 0:01:51]} 15. h4 {[%clk 0:02:03.6]} 15... O-O-O
{[%clk 0:01:41]} 16. hxg5 {[%clk 0:02:00.5]} 16... fxg5 {[%clk 0:01:41.9]} 17.
b4 {[%clk 0:01:55.1]} 17... h5 {[%clk 0:01:39.9]} 18. b5 {[%clk 0:01:51.5]}
18... h4 {[%clk 0:00:44.1]} 19. Bh2 {[%clk 0:01:44.2]} 19... Rdf8 {[%clk
0:00:25.1]} 20. bxc6 {[%clk 0:01:28.2]} 20... Bxc6 {[%clk 0:00:26]} 21. Ne5
{[%clk 0:01:27.2]} 21... Bd6 {[%clk 0:00:25.5]} 22. Rc1 {[%clk 0:01:16.7]} 22...
Rf6 {[%clk 0:00:23.8]} 23. Qa4 {[%clk 0:01:05]} 23... Kc7 {[%clk 0:00:15.9]} 24.
Bb5 {[%clk 0:00:55.4]} 1-0